bitfinex/quotes_SOLUSD_20250908
["timestamp","ask_amount","ask_price","bid_price","bid_amount"]
[1757312761774,37.2,207.45,207.44,3.09538592]
[1757312762080,37.20000001,207.46,207.44,83.19538592]
[1757312762282,37.20000001,207.46,207.44,80.78]
[1757312762596,37.20000001,207.46,207.44,83.19538592]
[1757312762776,1e-08,207.46,207.45,4.82043865]
[1757312762978,37.20000001,207.46,207.45,4.82043865]
[1757312763685,37.87000001,207.46,207.45,4.82043865]
[1757312766497,37.20000001,207.46,207.45,4.82043865]
[1757312766885,37.88000001,207.46,207.45,4.82043865]
[1757312767402,1e-08,207.46,207.45,7.95582457]
[1757312767698,37.20000001,207.46,207.45,7.95582457]
[1757312768702,1e-08,207.46,207.45,7.95582457]
[1757312768996,1e-08,207.46,207.45,130.60141858]
[1757312769204,1e-08,207.46,207.45,132.53131509]
[1757312770193,1e-08,207.46,207.45,133.53131509]
[1757312772375,1e-08,207.46,207.45,134.8812355]
[1757312773504,1e-08,207.46,207.45,172.0612355]
[1757312781291,1e-08,207.46,207.45,134.8812355]
[1757312781810,1e-08,207.46,207.45,130.39592917]
[1757312781988,1e-08,207.46,207.45,134.1612355]
[1757312782189,1e-08,207.46,207.45,134.8812355]
[1757312782488,1e-08,207.46,207.45,134.1612355]
[1757312783892,0.68000001,207.46,207.45,134.1612355]
[1757312784098,1e-08,207.46,207.45,134.1612355]
[1757312790614,1e-08,207.49,207.48,152.41090034]
[1757312790787,1e-08,207.51,207.5,46.31090034]
[1757312792017,1e-08,207.51,207.5,53.0596085]
[1757312794595,1e-08,207.51,207.5,133.1596085]
[1757312802630,1e-08,207.51,207.5,115.79870816]
[1757312802803,1e-08,207.51,207.5,119.56401449]
[1757312805524,1e-08,207.51,207.5,133.1596085]
[1757312805716,1e-08,207.51,207.5,129.39430217]
[1757312805922,1e-08,207.51,207.5,136.92491483]
[1757312806240,1e-08,207.51,207.5,129.39430217]
[1757312806412,1e-08,207.51,207.5,133.1596085]
[1757312806606,1e-08,207.51,207.5,136.92491483]
[1757312807017,1e-08,207.51,207.5,129.39430217]
[1757312807214,1e-08,207.51,207.5,136.92491483]
[1757312808513,1e-08,207.51,207.5,123.32932082]
[1757312808718,0.72000001,207.51,207.5,136.92491483]
[1757312809641,0.72000001,207.51,207.5,133.1596085]
[1757312810417,0.72000001,207.51,207.5,119.56401449]
[1757312810920,0.72000001,207.51,207.5,119.59401449]
[1757312812215,0.72000001,207.51,207.5,10.54401449]
[1757312814922,1e-08,207.51,207.5,10.54401449]
[1757312815536,0.72000001,207.51,207.5,39.48401449]
[1757312817943,1e-08,207.51,207.5,35.71870816]
[1757312818245,0.72000001,207.51,207.5,39.48401449]
[1757312818418,0.72000001,207.51,207.5,10.54401449]
[1757312820748,1e-08,207.51,207.5,11.23401449]
[1757312820961,1e-08,207.51,207.5,7.46870816]
[1757312821134,1e-08,207.51,207.5,10.54401449]
[1757312822238,0.72000001,207.51,207.5,10.54401449]
[1757312824041,1e-08,207.51,207.5,10.54401449]
[1757312827131,1e-08,207.51,207.5,6.77870816]
[1757312827338,1e-08,207.51,207.5,10.54401449]
[1757312828230,1e-08,207.51,207.5,11.19401449]
[1757312828432,1e-08,207.51,207.5,10.54401449]
[1757312828633,1e-08,207.51,207.5,11.19401449]
[1757312829648,1e-08,207.51,207.5,10.54401449]
[1757312830233,1e-08,207.51,207.5,90.64401449]
[1757312831037,0.71000001,207.51,207.5,90.64401449]
[1757312831950,0.71000001,207.51,207.5,86.87870816]
[1757312832339,0.71000001,207.51,207.5,80.13]
[1757312834854,0.71000001,207.51,207.5,84.9492771]
[1757312835054,0.71000001,207.51,207.5,80.13]
[1757312836356,0.71000001,207.51,207.5,0.03]
[1757312838952,1e-08,207.51,207.5,2.44022804]
[1757312839360,1e-08,207.51,207.5,3.09022804]
[1757312839850,1e-08,207.51,207.5,15.54592706]
[1757312840436,1e-08,207.51,207.5,20.36520416]
[1757312842072,1e-08,207.51,207.5,100.46520416]
[1757312843145,1e-08,207.51,207.5,129.40520416]
[1757312843352,1e-08,207.51,207.5,49.30520416]
[1757312845654,1e-08,207.51,207.5,62.90079817]
[1757312845857,1e-08,207.51,207.5,72.54171033]
[1757312846349,1e-08,207.51,207.5,152.64171033]
[1757312847043,1e-08,207.54,207.52,28.94]
[1757312847248,1e-08,207.54,207.53,2.41022804]
[1757312847470,1e-08,207.54,207.53,3.06022804]
[1757312847849,1e-08,207.54,207.53,9.80805342]
[1757312848874,0.71,207.59,207.56,26.0]
[1757312849061,0.71,207.59,207.58,2.41022804]
[1757312849867,17.6618712,207.61,207.58,16.87886727]
[1757312850178,0.71,207.6,207.59,2.41022804]
[1757312850469,0.71,207.6,207.59,7.22741576]
[1757312852677,17.6618712,207.61,207.59,7.22741576]
[1757312852861,17.6618712,207.61,207.6,7.22718372]
[1757312853263,17.6618712,207.61,207.6,4.81695568]
[1757312854679,16.9518712,207.61,207.6,7.22718372]
[1757312855557,16.9518712,207.61,207.6,21.69372983]
[1757312855766,0.66,207.65,207.6,73.0270312]
[1757312855972,0.66,207.66,207.65,4.81579581]
[1757312856173,0.66,207.66,207.65,7.22602385]
[1757312856377,37.78,207.68,207.65,7.22602385]
[1757312856585,37.78,207.68,207.66,2.41022804]
[1757312856883,12.83874067,207.67,207.66,2.41022804]
[1757312857074,37.12,207.68,207.66,2.41022804]
[1757312857266,0.66,207.69,207.67,2.41022804]
[1757312857670,0.66,207.69,207.68,2.41022804]
[1757312858065,37.12,207.7,207.68,9.63555623]
[1757312858274,0.66,207.69,207.68,9.63555623]
[1757312858873,0.66,207.69,207.68,7.22532819]
[1757312859081,0.66,207.69,207.68,9.63555623]
[1757312859266,37.12,207.7,207.68,9.63555623]
[1757312859467,0.66,207.69,207.68,9.63555623]
[1757312859779,0.66,207.69,207.68,4.81510015]
[1757312859968,0.66,207.69,207.68,19.27606759]
[1757312860369,0.66,207.69,207.68,14.46096744]
[1757312860571,3.07022804,207.69,207.63,7.22648767]
[1757312860771,0.66,207.68,207.63,7.22648767]
[1757312860968,2.41022804,207.69,207.63,7.22648767]
[1757312861172,0.66,207.67,207.63,7.22648767]
[1757312861367,0.66,207.66,207.65,14.46375624]
[1757312861570,2.41022804,207.69,207.65,14.46375624]
[1757312861778,0.66,207.66,207.65,14.46375624]
[1757312862283,3.07022804,207.66,207.65,14.46375624]
[1757312862469,3.07022804,207.66,207.62,84.91648152]
[1757312862789,0.66,207.65,207.62,99.38093512]
[1757312863085,0.66,207.64,207.62,99.38093512]
[1757312864788,3.07022804,207.63,207.58,84.9172083]
[1757312864965,0.66,207.62,207.58,84.9172083]
[1757312865288,0.66,207.61,207.58,99.38375441]
[1757312865586,0.66,207.6,207.58,99.38375441]
[1757312866799,0.66,207.59,207.57,80.1]
[1757312867089,51.56724375,207.65,207.57,80.1]
[1757312867090,0.66,207.58,207.57,80.1]
[1757312867260,0.66,207.58,207.56,0.03]
[1757312869874,0.66,207.57,207.56,0.03]
[1757312871894,2.41022804,207.59,207.56,0.03]
[1757312872110,37.76,207.62,207.58,2.41022804]
[1757312872390,37.76,207.62,207.58,3.12022804]
[1757312872591,0.66,207.61,207.58,2.41022804]
[1757312872889,0.66,207.6,207.58,2.41022804]
[1757312873880,0.66,207.6,207.58,7.22764592]
[1757312875096,0.66,207.6,207.58,2.41022804]
[1757312875393,0.66,207.59,207.57,26.0]
[1757312875581,0.66,207.59,207.56,0.03]
[1757312875780,0.66,207.58,207.56,0.03]
[1757312876581,0.66,207.59,207.56,0.03]
[1757312877184,0.66,207.58,207.56,0.03]
[1757312878602,0.66,207.58,207.56,2.44022804]
[1757312879696,13.59559401,207.6,207.56,0.03]
[1757312879899,0.66,207.57,207.56,0.03]
[1757312881199,4.8167305,207.58,207.56,0.03]
[1757312881499,4.8167305,207.58,207.56,7.25809831]
[1757312881683,4.8167305,207.58,207.56,7.96809831]
[1757312881998,37.84,207.61,207.56,7.96809831]
[1757312882203,37.84,207.61,207.58,2.41022804]
[1757312882204,37.18,207.61,207.58,2.41022804]
[1757312882377,37.18,207.62,207.58,2.41022804]
[1757312882576,0.66,207.61,207.58,2.41022804]
[1757312882995,0.66,207.6,207.58,2.41022804]
[1757312883698,0.66,207.6,207.58,7.22751501]
[1757312885389,0.72,207.59,207.57,2.41022804]
[1757312885696,0.72,207.59,207.57,4.81764784]
[1757312886300,0.72,207.59,207.57,7.22787588]
[1757312887200,0.06,207.61,207.57,7.22787588]
[1757312887401,0.06,207.61,207.58,3.08022804]
[1757312887593,0.78,207.61,207.59,4.81718772]
[1757312887780,0.78,207.61,207.59,7.22741576]
[1757312888705,0.06,207.61,207.6,2.41022804]
[1757312889411,0.06,207.61,207.59,19.95373384]
[1757312889603,0.06,207.61,207.6,2.41022804]
[1757312890708,0.06,207.61,207.6,7.22718372]
[1757312893208,0.06,207.61,207.6,7.89718372]
[1757312893396,0.06,207.61,207.6,36.83718372]
[1757312893707,0.06,207.61,207.6,7.89718372]
[1757312894294,0.06,207.61,207.6,5.48695568]
[1757312894622,0.06,207.61,207.6,9.24798047]
[1757312895313,0.78,207.61,207.6,8.57798047]
[1757312895692,0.06,207.61,207.6,8.57798047]
[1757312896409,0.78,207.61,207.58,3.76102479]
[1757312896710,0.72,207.6,207.59,26.0]
[1757312897216,0.72,207.6,207.59,30.81718772]
[1757312897591,0.06,207.61,207.59,34.57821251]
[1757312897792,0.78,207.61,207.59,34.57821251]
[1757312898599,0.06,207.61,207.59,26.0]
[1757312898911,0.72,207.6,207.59,26.0]
[1757312899295,0.72,207.6,207.59,30.81718772]
[1757312899497,0.06,207.61,207.59,30.81718772]
[1757312899712,0.06,207.61,207.59,34.57821251]
[1757312899904,0.78,207.61,207.59,34.57821251]
[1757312901516,0.78,207.61,207.59,30.81718772]
[1757312904322,0.06,207.61,207.6,3.76102479]
[1757312906608,0.06,207.61,207.59,34.57821251]
[1757312909514,0.06,207.61,207.59,35.24821251]
[1757312909729,0.06,207.61,207.6,3.76102479]
[1757312909916,0.06,207.61,207.6,4.43102479]
[1757312911528,0.06,207.61,207.6,35.24798047]
[1757312913425,0.06,207.61,207.6,115.34798047]
[1757312915510,0.06,207.61,207.6,113.84798047]
[1757312917528,0.06,207.61,207.6,111.58695568]
[1757312917710,0.06,207.61,207.6,115.34798047]
[1757312919414,0.06,207.61,207.6,35.24798047]
[1757312919630,0.06,207.61,207.6,35.27798047]
[1757312923844,0.06,207.61,207.6,64.21798047]
[1757312924132,0.06,207.61,207.6,59.78695568]
[1757312924340,0.77,207.61,207.6,34.60798047]
[1757312924655,0.06,207.61,207.6,34.60798047]
[1757312924824,0.77,207.61,207.6,34.60798047]
[1757312925333,0.77,207.61,207.6,114.70798047]
[1757312925840,0.77,207.61,207.6,80.13]
[1757312926216,0.77,207.61,207.6,0.03]
[1757312926739,4.53102479,207.61,207.6,0.03]
[1757312926918,63.80436725,207.61,207.6,0.03]
[1757312927243,60.04334246,207.61,207.6,0.03]
[1757312927443,63.80436725,207.61,207.6,0.03]
[1757312927647,65.73407755,207.61,207.6,0.03]
[1757312929439,58.21202797,207.61,207.6,0.03]
[1757312929742,65.73407755,207.61,207.6,0.03]
[1757312930445,61.97305276,207.61,207.6,0.03]
[1757312930827,4.53102479,207.61,207.6,0.03]
[1757312931234,41.63102479,207.61,207.6,0.03]
[1757312933230,41.65102479,207.61,207.6,0.03]
[1757312933430,0.77,207.61,207.6,0.03]
[1757312933744,37.18,207.61,207.6,0.03]
[1757312934643,37.89,207.61,207.6,0.03]
[1757312935438,37.18,207.61,207.6,0.03]
[1757312935823,37.89,207.61,207.6,0.03]
[1757312943847,37.18,207.61,207.6,0.03]
[1757312944438,37.89,207.61,207.6,0.03]
[1757312945329,41.65102479,207.61,207.6,0.03]
[1757312947353,37.18,207.61,207.6,0.03]
[1757312947651,41.63102479,207.61,207.6,0.03]
[1757312950053,60.04334246,207.61,207.6,0.03]
[1757312950256,61.97305276,207.61,207.6,0.03]
[1757312950635,61.97305276,207.61,207.57,0.03]
[1757312950636,39.59559401,207.58,207.57,0.03]
[1757312950836,80.4766188,207.58,207.57,0.03]
[1757312951035,81.1666188,207.58,207.57,0.03]
[1757312951448,83.09670155,207.58,207.57,0.03]
[1757312951857,87.91412133,207.58,207.57,0.03]
[1757312956054,32.38110754,207.58,207.57,0.03]
[1757312956361,40.22012488,207.58,207.57,0.03]
[1757312958346,39.53012488,207.58,207.57,0.03]
[1757312958534,40.22012488,207.58,207.57,0.03]
[1757312963636,37.81,207.58,207.57,0.03]
[1757312963832,40.22012488,207.58,207.57,0.03]
[1757312964347,37.81,207.58,207.57,0.03]
[1757312964540,40.22012488,207.58,207.57,0.03]
[1757312965771,1.92971031,207.6,207.57,0.7]
[1757312965951,37.12,207.59,207.57,0.7]
[1757312966260,2.47012488,207.61,207.57,0.7]
[1757312966261,37.12,207.58,207.57,0.7]
[1757312966866,37.12,207.58,207.57,5.51765187]
[1757312967253,37.12,207.58,207.57,7.92777675]
[1757312968964,0.06,207.61,207.57,7.92777675]
[1757312969173,0.06,207.61,207.58,3.08012488]
[1757312969174,37.12,207.6,207.58,3.08012488]
[1757312969466,37.12,207.6,207.59,0.67]
[1757312971245,37.12,207.6,207.58,7.22735699]
[1757312971469,37.12,207.6,207.58,7.89735699]
[1757312975072,37.12,207.6,207.58,5.48723211]
[1757312976160,37.12,207.6,207.59,0.03]
[1757312976456,37.18,207.6,207.59,0.03]
[1757312976659,37.84,207.6,207.59,0.03]
[1757312977272,37.18,207.6,207.59,0.03]
[1757312980080,37.84,207.6,207.59,0.03]
[1757312981183,37.18,207.6,207.59,0.03]
[1757312986153,37.84,207.6,207.59,0.03]
[1757312988089,37.18,207.6,207.59,0.03]
[1757312988655,37.84,207.6,207.59,0.03]
[1757312988984,40.25012488,207.6,207.59,0.03]
[1757312993573,45.06708056,207.6,207.59,0.03]
[1757312995090,40.25012488,207.6,207.59,0.03]
[1757313000294,58.66267457,207.6,207.59,0.03]
[1757313000587,68.30317409,207.6,207.59,0.03]
[1757313001083,60.59257108,207.6,207.59,0.03]
[1757313001790,60.57257108,207.6,207.59,0.03]
[1757313003198,1.98989651,207.6,207.59,0.03]
[1757313003369,41.50002139,207.6,207.59,0.03]
[1757313003563,40.23012488,207.6,207.59,0.03]
[1757313004667,2.47012488,207.6,207.59,0.03]
[1757313004872,37.16,207.6,207.59,0.03]
[1757313005071,39.57012488,207.6,207.59,0.03]
[1757313005790,37.16,207.6,207.59,0.7]
[1757313005969,37.16,207.6,207.59,0.03]
[1757313009668,0.06,207.6,207.59,0.03]
[1757313009891,37.16,207.6,207.59,0.7]
[1757313010396,37.16,207.6,207.59,0.03]
[1757313011171,37.16,207.6,207.59,0.7]
[1757313011763,37.16,207.6,207.59,0.03]
[1757313012370,0.06,207.6,207.59,0.03]
[1757313012565,37.16,207.6,207.59,3.11012488]
[1757313013787,37.16,207.6,207.59,7.9273126]
[1757313014572,0.06,207.6,207.59,7.9273126]
[1757313015472,0.06,207.6,207.59,5.51718772]
[1757313015667,0.06,207.6,207.59,7.9273126]
[1757313016406,0.06,207.6,207.59,9.27896456]
[1757313019576,0.06,207.6,207.59,8.60896456]
[1757313019996,0.73,207.6,207.59,0.03]
[1757313020197,4.49177684,207.6,207.59,0.03]
[1757313020397,0.73,207.6,207.59,0.03]
[1757313020599,4.49177684,207.6,207.59,0.03]
[1757313020999,26.0,207.58,207.57,0.03]
[1757313021210,85.27479063,207.58,207.57,0.03]
[1757313021391,85.27479063,207.58,207.55,0.03]
[1757313021392,17.35737085,207.57,207.55,0.03]
[1757313021593,13.59559401,207.55,207.47,0.03]
[1757313021798,3.76177684,207.53,207.47,4.84993316]
[1757313021987,3.76177684,207.53,207.48,8.58150258]
[1757313022299,37.1,207.53,207.49,4.43177684]
[1757313022887,37.1,207.53,207.5,3.79177684]
[1757313023302,37.1,207.53,207.51,4.84904486]
[1757313023601,37.12,207.53,207.51,0.03]
[1757313024810,41.55177684,207.53,207.51,0.03]
[1757313027286,43.48185959,207.53,207.51,0.03]
[1757313029698,39.72008275,207.53,207.51,0.03]
[1757313030006,43.48185959,207.53,207.51,0.03]
[1757313030316,48.30044003,207.53,207.51,0.03]
[1757313030719,43.48185959,207.53,207.51,0.03]
[1757313031718,61.89603404,207.53,207.51,0.03]
[1757313034825,24.77603404,207.53,207.51,0.03]
[1757313035024,57.0574536,207.53,207.51,0.03]
[1757313035224,19.9574536,207.53,207.51,0.03]
[1757313035600,57.0574536,207.53,207.51,0.03]
[1757313035906,43.46185959,207.53,207.51,0.03]
[1757313037830,6.36185959,207.53,207.51,0.03]
[1757313038003,42.79185959,207.53,207.51,0.03]
[1757313038520,1.93008275,207.53,207.51,0.03]
[1757313038740,39.03008275,207.53,207.52,0.74]
[1757313038921,37.1,207.53,207.52,0.74]
[1757313041009,37.1,207.53,207.52,0.03]
[1757313041403,41.54177684,207.53,207.52,0.03]
[1757313042327,43.47195273,207.53,207.52,0.03]
[1757313045718,39.71017589,207.53,207.52,0.03]
[1757313045910,61.88612718,207.53,207.52,0.03]
[1757313046517,13.59559401,207.52,207.5,0.03]
[1757313046706,54.49737085,207.51,207.5,0.03]
[1757313046910,92.38120544,207.51,207.5,0.03]
[1757313047612,72.07371717,207.51,207.5,0.03]
[1757313048124,76.89276203,207.51,207.5,0.03]
[1757313048424,61.99098519,207.51,207.5,0.03]
[1757313048731,99.17098519,207.51,207.5,0.03]
[1757313048915,54.73634632,207.51,207.5,0.03]
[1757313049229,54.05634632,207.51,207.5,0.03]
[1757313049618,54.73634632,207.51,207.5,0.03]
[1757313050018,54.05634632,207.51,207.5,0.03]
[1757313050324,54.07634632,207.51,207.5,0.03]
[1757313050718,54.75634632,207.51,207.5,0.03]
[1757313051026,54.07634632,207.51,207.5,0.03]
[1757313051734,13.13456948,207.51,207.5,0.03]
[1757313051916,50.31456948,207.51,207.5,0.74]
[1757313052248,54.07634632,207.51,207.5,0.03]
[1757313052622,54.75634632,207.51,207.5,0.03]
[1757313053030,54.07634632,207.51,207.5,0.03]
[1757313053426,54.75634632,207.51,207.5,0.03]
[1757313053630,59.57539118,207.51,207.5,0.03]
[1757313053828,54.75634632,207.51,207.5,0.03]
[1757313054340,59.57539118,207.51,207.5,0.03]
[1757313058348,73.17098519,207.51,207.5,0.03]
[1757313059216,72.47098519,207.51,207.5,0.03]
[1757313060527,50.29456948,207.51,207.5,0.74]
[1757313060728,48.36383459,207.51,207.5,0.74]
[1757313061039,11.20383459,207.51,207.5,0.74]
[1757313061252,48.40383459,207.51,207.5,0.74]
[1757313065145,48.38383459,207.51,207.5,0.74]
[1757313065348,48.38383459,207.51,207.5,9.32105394]
[1757313065922,48.38383459,207.51,207.5,0.74]
[1757313066338,48.38383459,207.51,207.5,4.50177684]
[1757313066952,48.44383459,207.51,207.5,9.32105394]
[1757313069645,48.44383459,207.51,207.5,5.5592771]
[1757313069944,48.44383459,207.51,207.5,9.32105394]
[1757313070454,11.26383459,207.51,207.5,9.32105394]
[1757313070618,48.44383459,207.51,207.5,9.32105394]
[1757313071436,11.26383459,207.51,207.5,9.32105394]
[1757313072240,11.26383459,207.51,207.5,0.03]
[1757313072541,11.26383459,207.51,207.5,4.51177684]
[1757313072744,11.26383459,207.51,207.5,9.33105394]
[1757313074020,11.26383459,207.51,207.5,8.61105394]
[1757313074754,11.26383459,207.51,207.5,3.79177684]
[1757313074942,11.26383459,207.51,207.5,0.03]
[1757313076629,11.26383459,207.51,207.5,9.33105394]
[1757313077223,11.26383459,207.51,207.5,5.5692771]
[1757313079536,11.26383459,207.51,207.5,7.97929394]
[1757313080448,11.97383459,207.51,207.5,0.03]
[1757313090358,14.38385143,207.51,207.5,0.03]
[1757313090561,19.20289629,207.51,207.5,0.03]
[1757313090746,32.7984903,207.51,207.5,0.03]
[1757313091464,32.31930155,207.51,207.5,0.03]
[1757313091639,71.84931839,207.51,207.5,0.03]
[1757313097265,69.43930155,207.51,207.5,0.03]
[1757313097459,71.84931839,207.51,207.5,0.03]
[1757313097854,34.72931839,207.51,207.5,0.03]
[1757313098058,71.84931839,207.51,207.5,0.03]
[1757313100872,52.72467952,207.51,207.5,0.03]
[1757313101178,50.79385143,207.51,207.5,0.03]
[1757313101562,48.38383459,207.51,207.5,0.03]
[1757313102471,11.26383459,207.51,207.5,0.03]
[1757313102681,48.38383459,207.51,207.5,0.03]
[1757313104786,49.04383459,207.51,207.5,0.03]
[1757313105360,53.86287945,207.51,207.5,0.03]
[1757313106088,56.27289629,207.51,207.5,0.03]
[1757313106284,58.2034448,207.51,207.5,0.03]
[1757313109092,55.79342796,207.51,207.5,0.03]
[1757313109293,50.9743831,207.51,207.5,0.03]
[1757313109991,55.79342796,207.51,207.5,0.03]
[1757313112383,58.2034448,207.51,207.5,0.03]
[1757313116907,57.5434448,207.51,207.5,0.03]
[1757313121203,52.72439994,207.51,207.5,0.03]
[1757313121791,13.1943831,207.51,207.5,0.72]
[1757313122100,48.38383459,207.51,207.5,0.72]
[1757313123490,11.26383459,207.51,207.5,0.72]
[1757313123705,48.38383459,207.51,207.5,0.72]
[1757313124303,11.26383459,207.51,207.5,0.72]
[1757313124492,51.45385143,207.51,207.5,0.03]
[1757313124697,50.79385143,207.51,207.5,0.03]
[1757313125487,13.67385143,207.51,207.5,0.03]
[1757313125688,50.79385143,207.51,207.5,0.03]
[1757313125996,48.38383459,207.51,207.5,0.03]
[1757313126204,11.26383459,207.51,207.5,0.03]
[1757313126499,48.38383459,207.51,207.5,0.03]
[1757313126904,56.33289629,207.51,207.5,0.03]
[1757313127907,19.21289629,207.51,207.5,0.03]
[1757313128212,56.33289629,207.51,207.5,0.03]
[1757313128419,95.9284903,207.51,207.5,0.03]
[1757313128814,97.85931838,207.51,207.5,0.03]
[1757313133331,81.49938574,207.51,207.5,0.03]
[1757313134716,32.32930154,207.51,207.5,0.03]
[1757313134916,71.85931838,207.51,207.5,0.03]
[1757313136318,97.85931838,207.51,207.5,0.03]
[1757313138441,99.21835756,207.51,207.5,0.03]
[1757313139611,62.09835756,207.51,207.5,0.03]
[1757313139807,98.49835756,207.51,207.5,0.03]
[1757313140049,61.37835756,207.51,207.5,0.03]
[1757313140343,98.49835756,207.51,207.5,0.03]
[1757313141045,98.49835756,207.51,207.5,0.73]
[1757313141046,26.79025668,207.51,207.5,0.73]
[1757313141335,54.08371869,207.51,207.5,0.73]
[1757313141539,54.08371869,207.51,207.5,0.03]
[1757313141710,59.62276355,207.51,207.5,0.03]
[1757313142124,58.90276355,207.51,207.5,0.03]
[1757313142532,21.78276355,207.51,207.5,0.03]
[1757313142738,58.90276355,207.51,207.5,0.03]
[1757313143439,73.21835756,207.51,207.5,0.03]
[1757313145046,72.49835756,207.51,207.5,0.03]
[1757313147060,72.49835756,207.51,207.5,0.73]
[1757313147061,50.31466267,207.51,207.5,0.73]
[1757313147235,13.19466267,207.51,207.5,0.73]
[1757313147563,50.31466267,207.51,207.5,0.73]
[1757313151231,48.38383459,207.51,207.5,0.73]
[1757313152157,48.38383459,207.51,207.5,0.03]
[1757313157967,49.08383459,207.51,207.5,0.03]
[1757313158261,57.67193547,207.51,207.5,0.03]
[1757313158840,61.47099149,207.51,207.5,0.03]
[1757313160955,75.0665855,207.51,207.5,0.03]
[1757313162652,78.83564152,207.51,207.5,0.03]
[1757313166963,67.63180693,207.51,207.5,0.03]
[1757313169165,67.61180693,207.51,207.5,0.03]
[1757313177271,30.51180693,207.51,207.5,0.03]
[1757313177465,67.61180693,207.51,207.5,0.03]
[1757313178891,30.51180693,207.51,207.5,0.03]
[1757313179190,67.61180693,207.51,207.5,0.03]
[1757313179485,66.91180693,207.51,207.5,0.03]
[1757313179889,67.61180693,207.51,207.5,0.03]
[1757313183302,30.51180693,207.51,207.5,0.03]
[1757313183470,67.61180693,207.51,207.5,0.03]
[1757313183672,30.51180693,207.51,207.5,0.03]
[1757313183872,67.61180693,207.51,207.5,0.03]
[1757313184102,63.84275091,207.51,207.5,0.03]
[1757313184479,63.14275091,207.51,207.5,0.03]
[1757313184798,26.04275091,207.51,207.5,0.03]
[1757313185191,63.14275091,207.51,207.5,0.03]
[1757313185400,22.27369489,207.51,207.5,0.75]
[1757313185586,89.14275091,207.51,207.5,0.75]
[1757313186283,85.37369489,207.51,207.5,0.75]
[1757313186483,47.22370605,207.51,207.5,0.75]
[1757313186785,89.14275091,207.51,207.5,0.75]
[1757313187478,52.04275091,207.51,207.5,0.75]
[1757313187673,89.14275091,207.51,207.5,0.75]
[1757313187879,58.32370605,207.51,207.5,0.75]
[1757313189688,54.55465003,207.51,207.5,0.75]
[1757313189887,58.32370605,207.51,207.5,0.75]
[1757313191100,63.14275091,207.51,207.5,0.75]
[1757313195495,3.85905602,207.51,207.5,0.75]
[1757313195707,40.95905602,207.51,207.5,0.75]
[1757313196009,45.77810088,207.51,207.5,0.75]
[1757313196696,40.95905602,207.51,207.5,0.75]
[1757313199201,3.85905602,207.51,207.5,0.75]
[1757313199500,40.95905602,207.51,207.5,0.75]
[1757313201583,3.85905602,207.51,207.5,0.75]
[1757313201877,40.93905602,207.51,207.5,0.75]
[1757313202505,44.04986627,207.51,207.5,0.03]
[1757313202887,43.34986627,207.51,207.5,0.03]
[1757313203502,48.16891113,207.51,207.5,0.03]
[1757313203688,61.76450514,207.51,207.5,0.03]
[1757313203887,62.46450514,207.51,207.5,0.03]
[1757313204400,61.76450514,207.51,207.5,0.03]
[1757313204701,59.35369489,207.51,207.5,0.03]
[1757313204889,61.76450514,207.51,207.5,0.03]
[1757313205710,54.53465003,207.51,207.5,0.03]
[1757313206399,40.93905602,207.51,207.5,0.03]
[1757313206606,40.93905602,207.51,207.5,0.75]
[1757313209688,45.75810088,207.51,207.5,0.03]
[1757313210608,48.86891113,207.51,207.5,0.03]
[1757313211102,48.16891113,207.51,207.5,0.03]
[1757313212911,45.75810088,207.51,207.5,0.03]
[1757313213209,40.93905602,207.51,207.5,0.03]
[1757313214707,45.75810088,207.51,207.5,0.03]